fUST/lending_fUST_20260104
["ID","MTS","AMOUNT","RATE_DAILY","PERIOD"]
[400426022,1767539444215,-501.19127842,0.00013699,2]
[400426023,1767539444225,-500.0,0.00013699,2]
[400426024,1767539444235,-500.68900305,0.00013699,2]
[400426025,1767539444245,-500.0,0.00013699,2]
[400426026,1767539444255,-500.86924755,0.00013699,2]
[400426027,1767539444265,-501.07709958,0.00013699,2]
[400426028,1767539444275,-501.04423764,0.00013699,2]
[400426029,1767539444285,-500.0,0.00013699,2]
[400426030,1767539444294,-500.92020919,0.00013699,2]
[400426031,1767539444304,-502.04480355,0.00013699,2]
[400426032,1767539444314,-500.70390691,0.00013699,2]
[400426033,1767539444324,-526.06901587,0.00013699,2]
[400426034,1767539444336,-500.0,0.00013699,2]
[400426035,1767539444347,-500.74532212,0.00013699,2]
[400426036,1767539444357,-500.84600982,0.00013699,2]
[400426037,1767539444367,-500.63204619,0.00013699,2]
[400426038,1767539444378,-500.0,0.00013699,2]
[400426039,1767539444389,-500.61401424,0.00013699,2]
[400426040,1767539444399,-500.0,0.00013699,2]
[400426041,1767539444409,-500.0,0.00013699,2]
[400426042,1767539444419,-500.0,0.00013699,2]
[400426043,1767539444429,-501.17135178,0.00013699,2]
[400426044,1767539444440,-500.93963039,0.00013699,2]
[400426045,1767539444450,-500.0,0.00013699,2]
[400426046,1767539444460,-500.0,0.00013699,2]
[400426047,1767539444470,-500.76143899,0.00013699,2]
[400426048,1767539444480,-2000.0,0.00013699,7]
[400426049,1767539444491,-501.56829016,0.00013699,2]
[400426050,1767539444502,-500.0,0.00013699,2]
[400426051,1767539444515,-500.65045485,0.00013699,2]
[400426052,1767539444525,-500.0,0.00013699,2]
[400426053,1767539444535,-500.0,0.00013699,2]
[400426054,1767539444545,-500.2666594,0.00013699,2]
[400426055,1767539444555,-500.7233053,0.00013699,2]
[400426056,1767539444565,-343.49392703,0.00013699,2]
[400426057,1767539444576,-191.657624,0.00013699,2]
[400426058,1767539444586,-191.657624,0.00013699,2]
[400426059,1767539444596,-191.657624,0.00013699,2]
[400426060,1767539444607,-191.657624,0.00013699,2]
[400426061,1767539444617,-179.273403,0.00013699,2]
[400426062,1767539444627,-179.273403,0.00013699,2]
[400426063,1767539444638,-179.273403,0.00013699,2]
[400426064,1767539444649,-179.273403,0.00013699,2]
[400426065,1767539444659,-1152.0,0.00013729,2]
[400426066,1767539444670,-151.0,0.00013794,2]
[400426067,1767539444679,-6950.28855905,0.00013798,2]
[400426068,1767539444689,-663.93287602,0.00013818,2]
[400426069,1767539444699,-559.85540767,0.00013821,2]
[400426070,1767539444709,-1000.77344969,0.00013821,2]
[400426071,1767539444720,-1000.0,0.00013821,2]
[400426072,1767539444730,-1000.0,0.00013821,2]
[400426073,1767539444740,-1001.10079319,0.00013821,2]
[400426074,1767539444751,-1000.0,0.00013821,2]
[400426075,1767539444761,-1000.0,0.00013821,2]
[400426077,1767539444772,-1000.73614236,0.00013821,2]
[400426078,1767539444782,-500.54385741,0.00013821,2]
[400426080,1767539444791,-1000.0,0.00013821,2]
[400426082,1767539444802,-177.31363465,0.00013821,2]
[400426084,1767539444812,-500.78852788,0.00013821,2]
[400426086,1767539444821,-503.24529155,0.00013821,2]
[400426088,1767539444832,-1062.49024753,0.00013821,2]
[400426090,1767539444841,-500.43463828,0.00013821,2]
[400426092,1767539444851,-500.40232212,0.00013821,2]
[400426094,1767539444861,-500.0,0.00013821,2]
[400426096,1767539444873,-1006.66491172,0.00013821,2]
[400426098,1767539444883,-1000.68502209,0.00013821,2]
[400426100,1767539444893,-1000.0,0.00013821,2]
[400426102,1767539444903,-1000.0,0.00013821,2]
[400426104,1767539444913,-1006.40151695,0.00013821,2]
[400426106,1767539444923,-160.8561298,0.00013821,2]
[400426108,1767539444933,-1000.0,0.00013821,2]
[400426111,1767539444943,-500.89687559,0.00013821,2]
[400426112,1767539444953,-1000.0,0.00013821,2]
[400426114,1767539444963,-1000.55162426,0.00013821,2]
[400426116,1767539444975,-1000.0,0.00013821,2]
[400426118,1767539444984,-1000.0,0.00013821,2]
[400426120,1767539444994,-500.0,0.00013821,2]
[400426122,1767539445004,-500.26789632,0.00013821,2]
[400426125,1767539445014,-500.36434968,0.00013821,2]
[400426127,1767539445024,-500.0,0.00013821,2]
[400426129,1767539445033,-500.0,0.00013821,2]
[400426131,1767539445043,-460.22217308,0.00013821,2]
[400426133,1767539445052,-500.0,0.00013821,2]
[400426134,1767539445062,-1000.0,0.00013821,2]
[400426136,1767539445072,-500.86705355,0.00013821,2]
[400426139,1767539445081,-1000.91624056,0.00013821,2]
[400426141,1767539445091,-1000.0,0.00013821,2]
[400426142,1767539445101,-1000.0,0.00013821,2]
[400426145,1767539445111,-500.0,0.00013821,2]
[400426147,1767539445121,-500.52724424,0.00013821,2]
[400426148,1767539445131,-223.31,0.00014,4]
[400426150,1767539445142,-600.0,0.00014221,2]
[400426152,1767539445152,-1000.0,0.00014247,2]
[400426154,1767539445161,-1000.0,0.00014247,2]
[400426156,1767539445171,-1000.0,0.00014247,2]
[400426158,1767539445181,-1000.0,0.00014247,2]
[400426159,1767539445190,-1000.0,0.00014247,2]
[400426161,1767539445199,-1000.0,0.00014247,2]
[400426163,1767539445209,-1000.0,0.00014247,2]
[400426165,1767539445219,-1000.0,0.00014247,2]
[400426167,1767539445228,-688.49839244,0.00014366,2]
[400426169,1767539445238,-478.35295088,0.00014368,2]
[400426171,1767539445248,-281.48137907,0.00014368,2]
[400426173,1767539445258,-500.0,0.00014368,2]
[400426175,1767539445268,-423.32811707,0.00014368,2]
[400426178,1767539445278,-500.0,0.00014368,2]
[400426180,1767539445292,-500.0,0.00014368,2]
[400426182,1767539445302,-1500.0,0.00014368,2]
[400426184,1767539445312,-500.0,0.00014368,2]
[400426185,1767539445321,-1500.0,0.00014368,2]
[400426187,1767539445331,-1354.76768455,0.00014368,2]
[400426189,1767539445345,-1500.0,0.00014368,2]
[400426192,1767539445355,-1500.0,0.00014368,2]
[400426194,1767539445365,-500.0,0.00014368,2]
[400426196,1767539445375,-1500.0,0.00014368,2]
[400426198,1767539445385,-621.25446835,0.00014419,2]
[400426200,1767539445394,-2000.0,0.00014514,7]
[400426202,1767539445405,-900.0,0.00014768,2]
[400426204,1767539445415,-1500.0,0.00014795,2]
[400426206,1767539445424,-501.5287654,0.00014795,2]
[400426208,1767539445434,-167.99783089,0.00014795,2]
[400426209,1767539445444,-1500.0,0.00014795,2]
[400426211,1767539445453,-1500.0,0.00014795,2]
[400426213,1767539445463,-248.59476834,0.00014795,2]
[400426215,1767539445472,-1500.0,0.00014795,2]
[400426217,1767539445482,-1500.0,0.00014795,2]
[400426219,1767539445492,-713.97283296,0.00014914,2]
[400426221,1767539445502,-2000.0,0.00014916,2]
[400426223,1767539445511,-1000.0,0.00014916,2]
[400426225,1767539445521,-1598.44792801,0.00014916,2]
[400426227,1767539445532,-2000.0,0.00014916,2]
[400426229,1767539445541,-2000.0,0.00014916,2]
[400426231,1767539445551,-1000.0,0.00014923,2]
[400426233,1767539445560,-244.0,0.00014923,2]
[400426235,1767539445570,-151.0,0.00015,2]
[400426237,1767539445580,-692.0,0.00015102,2]
[400426239,1767539445590,-156.04,0.00015189,2]
[400426241,1767539445600,-8650.36069881,0.00015271,3]
[400426243,1767539445610,-1200.0,0.00015316,2]
[400426245,1767539445619,-2000.0,0.00015329,7]
[400426247,1767539445628,-1558.12211568,0.00015342,2]
[400426249,1767539445639,-687.88444633,0.00015342,2]
[400426251,1767539445650,-2000.0,0.00015342,2]
[400426253,1767539445659,-2000.0,0.00015342,2]
[400426255,1767539445668,-2000.0,0.00015342,2]
[400426257,1767539445677,-224.27318784,0.00015372,2]
[400426259,1767539445687,-740.38982778,0.00015462,2]
[400426261,1767539445698,-391.0513895,0.00015464,2]
[400426263,1767539445708,-2500.0,0.00015464,2]
[400426265,1767539445718,-2500.0,0.00015464,2]
[400426268,1767539445728,-151.0,0.000156,2]
[400426269,1767539445739,-1500.0,0.00015864,2]
[400426272,1767539445749,-2500.0,0.0001589,2]
[400426274,1767539445759,-2500.0,0.0001589,2]
[400426276,1767539445769,-2500.0,0.0001589,2]
[400426278,1767539445779,-767.7842514,0.0001601,2]
[400426280,1767539445788,-3000.0,0.00016012,2]
[400426282,1767539445798,-3000.0,0.00016012,2]
[400426284,1767539445808,-364.0,0.00016082,3]
[400426286,1767539445818,-2000.0,0.00016144,7]
[400426288,1767539445828,-4602.61026958,0.00016224,30]
[400426290,1767539445838,-151.0,0.000163,2]
[400426292,1767539445848,-1800.0,0.00016412,2]
[400426294,1767539445858,-1000.0,0.00016415,2]
[400426296,1767539445868,-492.0,0.00016415,2]
[400426298,1767539445878,-693.86862699,0.00016419,2]
[400426300,1767539445887,-322.9,0.00016438,2]
[400426302,1767539445897,-500.0,0.00016438,2]
[400426304,1767539445908,-500.0,0.00016438,2]
[400426306,1767539445919,-500.0,0.00016438,2]
[400426308,1767539445928,-500.0,0.00016438,2]
[400426310,1767539445938,-500.0,0.00016438,2]
[400426312,1767539445948,-500.0,0.00016438,2]
[400426314,1767539445957,-500.0,0.00016438,2]
[400426316,1767539445968,-500.0,0.00016438,2]
[400426318,1767539445977,-500.0,0.00016438,2]
[400426320,1767539445987,-500.0,0.00016438,2]
[400426323,1767539445998,-500.0,0.00016438,2]
[400426325,1767539446007,-500.0,0.00016438,2]
[400426327,1767539446017,-500.0,0.00016438,2]
[400426329,1767539446027,-269.20866725,0.00016438,2]
[400426331,1767539446037,-500.0,0.00016438,2]
[400426333,1767539446046,-500.0,0.00016438,2]
[400426335,1767539446055,-151.0,0.00016438,2]
[400426337,1767539446065,-151.0,0.00016438,2]
[400426339,1767539446075,-3000.0,0.00016438,2]
[400426341,1767539446086,-3000.0,0.00016438,2]
[400426343,1767539446095,-3000.0,0.00016438,2]
[400426345,1767539446105,-200.0,0.00016473,2]
[400426347,1767539446115,-796.19226871,0.00016558,2]
[400426349,1767539446125,-3500.0,0.0001656,2]
[400426351,1767539446135,-3500.0,0.0001656,2]
[400426369,1767539446279,-628.0,0.00016888,2]
[400426372,1767539446313,-1474.721,0.00016888,2]
[400426374,1767539446322,-2169.0,0.00016888,2]
[400426376,1767539446333,-416.0,0.00016888,2]
[400426378,1767539446345,-714.0,0.00016888,2]
[400426380,1767539446355,-194.729,0.00016888,2]
[400426383,1767539446365,-5451.0,0.00016894,2]
[400426385,1767539446375,-322.9,0.00016936,2]
[400426387,1767539446385,-2000.0,0.00016959,7]
[400426389,1767539446397,-439.29349742,0.0001696,2]
[400426391,1767539446406,-151.0,0.00016986,2]
[400426393,1767539446418,-151.0,0.00016986,2]
[400426395,1767539446428,-3018.27095848,0.00016986,2]
[400426397,1767539446439,-3500.0,0.00016986,2]
[400426399,1767539446449,-3500.0,0.00016986,2]
[400426401,1767539446459,-14072.1712343,0.00017,2]
[400426403,1767539446469,-151.0,0.00017,2]
[400426405,1767539446478,-191.657624,0.00017,2]
[400426407,1767539446489,-191.657624,0.00017,2]
[400426409,1767539446499,-191.657624,0.00017,2]
[400426411,1767539446508,-191.657624,0.00017,2]
[400426413,1767539446518,-825.65138265,0.00017106,2]
[400426414,1767539446528,-179.273403,0.00017108,2]
[400426415,1767539446537,-179.273403,0.00017108,2]
[400426416,1767539446546,-179.273403,0.00017108,2]
[400426417,1767539446556,-179.273403,0.00017108,2]
[400426418,1767539446566,-4000.0,0.00017108,2]
[400426419,1767539446575,-4000.0,0.00017108,2]
[400426420,1767539446584,-150.683,0.0001711,2]
[400426421,1767539446595,-150.173,0.0001711,2]
[400426422,1767539446605,-150.395,0.0001711,2]
[400426423,1767539446615,-250.0,0.0001711,2]
[400426424,1767539446624,-267.101,0.0001711,2]
[400426426,1767539446634,-156.04,0.00017188,2]
[400426428,1767539446643,-322.9,0.00017434,2]
[400426430,1767539446654,-1000.0,0.00017534,2]
[400426431,1767539446663,-1000.0,0.00017534,2]
[400426432,1767539446673,-194.0,0.00017576,2]
[400426433,1767539446682,-2134.62124531,0.000176,2]
[400426434,1767539446691,-194.0,0.00017622,2]
[400426435,1767539446702,-194.0,0.00017629,2]
[400426437,1767539446711,-194.0,0.00017634,2]
[400426438,1767539446721,-4500.0,0.00017656,2]
[400426440,1767539446730,-194.0,0.00017703,2]
[400426442,1767539446740,-230.0,0.00017726,3]
[400426443,1767539446750,-194.0,0.00017764,2]
[400426444,1767539446759,-2000.0,0.00017774,7]
[400426445,1767539446769,-279.48316518,0.00017842,2]
[400426446,1767539446778,-751.53234567,0.00017842,2]
[400426447,1767539446788,-194.0,0.00017885,2]
[400426448,1767539446798,-194.0,0.00017907,2]
[400426449,1767539446807,-322.9,0.00017932,2]
[400426450,1767539446817,-161636.44780827,0.00018,2]
[400426451,1767539446827,-72540.06815,0.00018,5]
[400426452,1767539446837,-155.0,0.00018,30]
[400426453,1767539446846,-29985.21370522,0.00018,2]
[400426455,1767539446855,-151.0,0.00018,2]
[400426457,1767539446865,-190.765907,0.00018,2]
[400426458,1767539446875,-191.657624,0.00018,2]
[400426459,1767539446884,-191.657624,0.00018,2]
[400426460,1767539446894,-191.657624,0.00018,2]
[400426461,1767539446904,-191.657624,0.00018,2]
[400426462,1767539446914,-179.273403,0.00018,2]
[400426463,1767539446923,-179.273403,0.00018,2]
[400426465,1767539446933,-179.273403,0.00018,2]
[400426467,1767539446943,-179.273403,0.00018,2]
[400426468,1767539446952,-160.0,0.00018021,3]
[400426470,1767539446963,-194.0,0.00018022,2]
[400426472,1767539446972,-194.0,0.00018038,2]
[400426474,1767539446982,-1000.0,0.00018057,2]
[400426475,1767539446991,-791.0,0.00018057,2]
[400426476,1767539447001,-151.0,0.00018082,2]
[400426477,1767539447010,-191.657624,0.00018082,2]
[400426478,1767539447019,-191.657624,0.00018082,2]
[400426480,1767539447029,-191.657624,0.00018082,2]
[400426481,1767539447038,-191.657618,0.00018082,2]
[400426482,1767539447048,-179.273403,0.00018082,2]
[400426484,1767539447058,-179.273403,0.00018082,2]
[400426486,1767539447068,-179.273403,0.00018082,2]
[400426488,1767539447079,-179.273404,0.00018082,2]
[400426489,1767539447088,-142857.16,0.00018082,3]
[400426490,1767539447097,-381.0,0.00018088,2]
[400426491,1767539447107,-744.0,0.00018091,3]
[400426492,1767539447118,-194.0,0.00018123,2]
[400426493,1767539447128,-1000.0,0.00018204,2]
[400426494,1767539447137,-12050.50497833,0.00018216,13]
[400426495,1767539447147,-454.0,0.00018246,2]
[400426496,1767539447157,-952.0,0.0001829,3]
[400426497,1767539447166,-194.0,0.00018355,2]
[400426498,1767539447176,-178.9600823,0.00018382,29]
[400426499,1767539447186,-194.0,0.00018401,2]
[400426500,1767539447195,-160.0,0.0001841,4]
[400426501,1767539447205,-194.0,0.0001841,2]
[400426502,1767539447214,-766.48278563,0.00018419,2]
[400426503,1767539447224,-322.9,0.0001843,2]
[400426504,1767539447233,-588.0,0.00018457,2]
[400426505,1767539447243,-194.0,0.00018544,2]
[400426506,1767539447253,-2000.0,0.00018589,7]
[400426507,1767539447262,-194.0,0.0001863,2]
[400426508,1767539447272,-194.0,0.00018646,2]
[400426509,1767539447282,-735.0,0.00018652,2]
[400426510,1767539447291,-35714.28,0.000187,3]
[400426511,1767539447301,-160.0,0.00018798,5]
[400426512,1767539447311,-30215.36543229,0.000188,2]
[400426513,1767539447321,-194.0,0.00018811,2]
[400426514,1767539447331,-194.0,0.00018895,2]
[400426515,1767539447344,-39869.08270806,0.000189,2]
[400426516,1767539447354,-303.2061626,0.000189,2]
[400426517,1767539447363,-12288.87722511,0.000189,2]
[400426518,1767539447372,-178.9600823,0.00018921,30]
[400426519,1767539447382,-322.9,0.00018928,2]
[400426520,1767539447391,-194.0,0.0001895,2]
[400426521,1767539447400,-51956.42705537,0.00019,2]
[400426522,1767539447412,-2603.49,0.00019,2]
[400426523,1767539447421,-17943.82272585,0.00019,2]
[400426524,1767539447432,-898.0,0.00019,2]
[400426525,1767539447441,-194.0,0.00019008,2]
[400426526,1767539447451,-194.0,0.0001901,2]
[400426527,1767539447460,-303.2061626,0.00019089,2]
[400426528,1767539447470,-399.75,0.00019178,2]
[400426529,1767539447479,-481.8579,0.00019178,4]
[400426530,1767539447489,-399.75,0.00019178,2]
[400426531,1767539447498,-481.8579,0.00019178,4]
[400426532,1767539447509,-399.75,0.00019178,2]
[400426533,1767539447519,-481.8579,0.00019178,4]
[400426534,1767539447528,-399.75,0.00019178,2]
[400426535,1767539447537,-399.75,0.00019178,2]
[400426536,1767539447546,-481.8579,0.00019178,4]
[400426537,1767539447556,-399.75,0.00019178,2]
[400426538,1767539447566,-481.8579,0.00019178,4]
[400426539,1767539447575,-399.75,0.00019178,2]
[400426540,1767539447585,-399.75,0.00019178,2]
[400426541,1767539447595,-481.8579,0.00019178,4]
[400426542,1767539447604,-399.75,0.00019178,2]
[400426543,1767539447614,-481.8579,0.00019178,4]
[400426544,1767539447626,-399.75,0.00019178,2]
[400426545,1767539447636,-481.8579,0.00019178,4]
[400426546,1767539447645,-399.75,0.00019178,2]
[400426547,1767539447655,-481.8579,0.00019178,4]
[400426548,1767539447665,-399.75,0.00019178,2]
[400426549,1767539447674,-399.75,0.00019178,2]
[400426550,1767539447685,-481.8579,0.00019178,4]
[400426551,1767539447695,-399.75,0.00019178,2]
[400426552,1767539447704,-481.8579,0.00019178,4]
[400426553,1767539447714,-399.75,0.00019178,2]
[400426554,1767539447724,-399.75,0.00019178,2]
[400426555,1767539447734,-481.8579,0.00019178,4]
[400426556,1767539447743,-399.75,0.00019178,2]
[400426557,1767539447753,-481.8579,0.00019178,4]
[400426558,1767539447762,-399.75,0.00019178,2]
[400426559,1767539447772,-399.75,0.00019178,2]
[400426560,1767539447781,-481.8579,0.00019178,4]
[400426561,1767539447791,-399.75,0.00019178,2]
[400426562,1767539447800,-481.8579,0.00019178,4]
[400426563,1767539447810,-399.75,0.00019178,2]
[400426564,1767539447819,-481.8579,0.00019178,4]
[400426565,1767539447829,-151.0,0.00019178,2]
[400426566,1767539447839,-151.0,0.00019178,2]
[400426567,1767539447848,-151.0,0.00019178,2]
[400426568,1767539447858,-151.0,0.00019178,2]
[400426569,1767539447868,-151.0,0.00019178,2]
[400426570,1767539447877,-151.0,0.00019178,2]
[400426571,1767539447887,-283.090397,0.00019178,2]
[400426572,1767539447897,-151.0,0.00019178,2]
[400426573,1767539447907,-151.0,0.00019178,2]
[400426574,1767539447917,-151.0,0.00019178,2]
[400426575,1767539447926,-151.0,0.00019178,2]
[400426576,1767539447938,-151.0,0.00019178,2]
[400426577,1767539447947,-161.89925,0.00019178,2]
[400426578,1767539447957,-151.0,0.00019178,2]
[400426579,1767539447967,-151.0,0.00019178,2]
[400426580,1767539447977,-151.0,0.00019178,2]
[400426581,1767539447986,-165.373359,0.00019178,2]
[400426582,1767539447995,-151.0,0.00019178,2]
[400426583,1767539448005,-151.0,0.00019178,2]
[400426584,1767539448015,-151.0,0.00019178,2]
[400426585,1767539448024,-294.927495,0.00019178,2]
[400426586,1767539448034,-151.0,0.00019178,2]
[400426587,1767539448044,-151.0,0.00019178,2]
[400426588,1767539448054,-151.0,0.00019178,2]
[400426589,1767539448064,-151.0,0.00019178,2]
[400426590,1767539448073,-151.0,0.00019178,2]
[400426591,1767539448083,-151.0,0.00019178,2]
[400426592,1767539448093,-151.0,0.00019178,2]
[400426593,1767539448103,-151.0,0.00019178,2]
[400426594,1767539448113,-151.0,0.00019178,2]
[400426595,1767539448123,-151.0,0.00019178,2]
[400426596,1767539448133,-151.0,0.00019178,2]
[400426597,1767539448142,-151.0,0.00019178,2]
[400426598,1767539448152,-151.0,0.00019178,2]
[400426599,1767539448161,-151.0,0.00019178,2]
[400426600,1767539448170,-183.359184,0.00019178,2]
[400426601,1767539448179,-151.0,0.00019178,2]
[400426602,1767539448189,-151.0,0.00019178,2]
[400426603,1767539448202,-151.0,0.00019178,2]
[400426604,1767539448212,-151.0,0.00019178,2]
[400426605,1767539448221,-151.0,0.00019178,2]
[400426606,1767539448230,-151.0,0.00019178,2]
[400426607,1767539448240,-151.0,0.00019178,2]
[400426608,1767539448249,-151.0,0.00019178,2]
[400426609,1767539448259,-151.0,0.00019178,2]
[400426610,1767539448269,-151.0,0.00019178,2]
[400426611,1767539448280,-151.0,0.00019178,2]
[400426612,1767539448290,-151.0,0.00019178,2]
[400426613,1767539448299,-151.0,0.00019178,2]
[400426614,1767539448310,-151.0,0.00019178,2]
[400426615,1767539448320,-175.735291,0.00019178,2]
[400426616,1767539448330,-151.0,0.00019178,2]
[400426617,1767539448344,-151.0,0.00019178,2]
[400426618,1767539448354,-151.0,0.00019178,2]
[400426619,1767539448364,-151.0,0.00019178,2]
[400426620,1767539448374,-151.0,0.00019178,2]
[400426621,1767539448384,-151.0,0.00019178,2]
[400426622,1767539448394,-151.0,0.00019178,2]
[400426623,1767539448405,-151.0,0.00019178,2]
[400426624,1767539448415,-228.645426,0.00019178,2]
[400426625,1767539448426,-151.0,0.00019178,2]
[400426626,1767539448436,-151.0,0.00019178,2]
[400426627,1767539448446,-151.0,0.00019178,2]
[400426628,1767539448456,-151.0,0.00019178,2]
[400426629,1767539448465,-151.0,0.00019178,2]
[400426630,1767539448474,-151.0,0.00019178,2]
[400426631,1767539448484,-151.0,0.00019178,2]
[400426632,1767539448493,-151.0,0.00019178,2]
[400426633,1767539448503,-283.753242,0.00019178,2]
[400426634,1767539448513,-186.724874,0.00019178,2]
[400426635,1767539448523,-151.0,0.00019178,2]
[400426636,1767539448532,-151.0,0.00019178,2]
[400426637,1767539448542,-151.0,0.00019178,2]
[400426638,1767539448551,-151.0,0.00019178,2]
[400426639,1767539448560,-151.0,0.00019178,2]
[400426640,1767539448570,-151.0,0.00019178,2]
[400426641,1767539448580,-151.0,0.00019178,2]
[400426642,1767539448589,-151.0,0.00019178,2]
[400426643,1767539448599,-151.0,0.00019178,2]
[400426644,1767539448608,-151.0,0.00019178,2]
[400426645,1767539448618,-151.0,0.00019178,2]
[400426646,1767539448628,-151.0,0.00019178,2]
[400426647,1767539448637,-151.0,0.00019178,2]
[400426648,1767539448647,-151.0,0.00019178,2]
[400426649,1767539448656,-151.0,0.00019178,2]
[400426650,1767539448666,-151.0,0.00019178,2]
[400426651,1767539448675,-175.371328,0.00019178,2]
[400426652,1767539448685,-151.0,0.00019178,2]
[400426653,1767539448694,-151.0,0.00019178,2]
[400426654,1767539448704,-151.0,0.00019178,2]
[400426655,1767539448713,-151.0,0.00019178,2]
[400426656,1767539448723,-151.0,0.00019178,2]
[400426657,1767539448733,-151.0,0.00019178,2]
[400426658,1767539448743,-151.0,0.00019178,2]
[400426659,1767539448753,-151.0,0.00019178,2]
[400426660,1767539448763,-151.0,0.00019178,2]
[400426661,1767539448772,-151.0,0.00019178,2]
[400426662,1767539448781,-151.0,0.00019178,2]
[400426663,1767539448791,-171.471229,0.00019178,2]
[400426664,1767539448801,-151.0,0.00019178,2]
[400426665,1767539448810,-151.0,0.00019178,2]
[400426666,1767539448819,-151.0,0.00019178,2]
[400426667,1767539448829,-151.0,0.00019178,2]
[400426668,1767539448839,-151.0,0.00019178,2]
[400426669,1767539448848,-151.0,0.00019178,2]
[400426670,1767539448859,-151.0,0.00019178,2]
[400426671,1767539448868,-151.0,0.00019178,2]
[400426672,1767539448878,-151.0,0.00019178,2]
[400426673,1767539448889,-151.0,0.00019178,2]
[400426674,1767539448898,-151.0,0.00019178,2]
[400426675,1767539448908,-207.414308,0.00019178,2]
[400426676,1767539448918,-251.331355,0.00019178,2]
[400426677,1767539448928,-251.331355,0.00019178,2]
[400426678,1767539448938,-251.331355,0.00019178,2]
[400426679,1767539448947,-251.331355,0.00019178,2]
[400426680,1767539448957,-251.331355,0.00019178,2]
[400426681,1767539448967,-251.331355,0.00019178,2]
[400426682,1767539448976,-251.331355,0.00019178,2]
[400426683,1767539448986,-251.331355,0.00019178,2]
[400426684,1767539448995,-251.331355,0.00019178,2]
[400426685,1767539449004,-251.331355,0.00019178,2]
[400426686,1767539449014,-251.331355,0.00019178,2]
[400426687,1767539449023,-251.331355,0.00019178,2]
[400426688,1767539449033,-251.331355,0.00019178,2]
[400426689,1767539449043,-251.331355,0.00019178,2]
[400426690,1767539449052,-251.331355,0.00019178,2]
[400426691,1767539449063,-251.331355,0.00019178,2]
[400426692,1767539449073,-251.331355,0.00019178,2]
[400426693,1767539449083,-251.331355,0.00019178,2]
[400426694,1767539449093,-251.331355,0.00019178,2]
[400426695,1767539449102,-251.331359,0.00019178,2]
[400426696,1767539449112,-151.0,0.00019178,2]
[400426697,1767539449122,-151.0,0.00019178,2]
[400426698,1767539449131,-151.0,0.00019178,2]
[400426699,1767539449141,-151.0,0.00019178,2]
[400426700,1767539449150,-151.0,0.00019178,2]
[400426701,1767539449160,-151.0,0.00019178,2]
[400426702,1767539449169,-151.0,0.00019178,2]
[400426703,1767539449178,-151.0,0.00019178,2]
[400426704,1767539449187,-151.0,0.00019178,2]
[400426705,1767539449197,-151.0,0.00019178,2]
[400426706,1767539449207,-174.263605,0.00019178,2]
[400426707,1767539449216,-151.0,0.00019178,2]
[400426708,1767539449225,-151.0,0.00019178,2]
[400426709,1767539449235,-151.0,0.00019178,2]
[400426710,1767539449244,-151.0,0.00019178,2]
[400426711,1767539449253,-151.0,0.00019178,2]
[400426712,1767539449262,-151.0,0.00019178,2]
[400426713,1767539449272,-151.0,0.00019178,2]
[400426714,1767539449281,-193.929616,0.00019178,2]
[400426715,1767539449290,-151.0,0.00019178,2]
[400426716,1767539449300,-151.0,0.00019178,2]